Workbook

Sheet Données
A1: Mois | C1: Ob 2019 | D1: 2019-01-01 | E1: 2019-02-01 | F1: 2019-03-01 | G1: 2019-04-01 | H1: 2019-05-01 | I1: 2019-06-01 | J1: 2019-07-01 | K1: 2019-08-01 | L1: 2019-09-01 | M1: 2019-10-01 | N1: 2019-11-01 | O1: 2019-12-01
A2: 2019-01-01 | B2: Pomme granny | C2: 100 | D2: =C2/12 -> 8.333333333 | E2: =(C2/12)*2 -> 16.66666667 | F2: =(C2/12)*3 -> 25 | G2: =(C2/12)*4 -> 33.33333333 | H2: =(C2/12)*5 -> 41.66666667 | I2: =(C2/12)*6 -> 50 | J2: =(C2/12)*7 -> 58.33333333 | K2: =(C2/12)*8 -> 66.66666667 | L2: =(C2/12)*9 -> 75 | M2: =(C2/12)*10 -> 83.33333333 | N2: =(C2/12)*11 -> 91.66666667 | O2: =(C2/12)*12 -> 100
A3: 2019-02-01 | B3: Banane | C3: 150 | D3: =C3/12 -> 12.5 | E3: =(C3/12)*2 -> 25 | F3: =(C3/12)*3 -> 37.5 | G3: =(C3/12)*4 -> 50 | H3: =(C3/12)*5 -> 62.5 | I3: =(C3/12)*6 -> 75 | J3: =(C3/12)*7 -> 87.5 | K3: =(C3/12)*8 -> 100 | L3: =(C3/12)*9 -> 112.5 | M3: =(C3/12)*10 -> 125 | N3: =(C3/12)*11 -> 137.5 | O3: =(C3/12)*12 -> 150
A4: 2019-03-01 | B4: orange | C4: 200 | D4: 16.66666667 | E4: 33.33333333 | F4: 50 | G4: 66.66666667 | H4: 83.33333333 | I4: 100 | J4: 116.6666667 | K4: 133.3333333 | L4: 150 | M4: 166.6666667 | N4: 183.3333333 | O4: 200
A5: 2019-04-01 | B5: poireaux | C5: 530 | D5: 44.16666667 | E5: 88.33333333 | F5: 132.5 | G5: 176.6666667 | H5: 220.8333333 | I5: 265 | J5: 309.1666667 | K5: 353.3333333 | L5: 397.5 | M5: 441.6666667 | N5: 485.8333333 | O5: 530
A6: 2019-05-01 | B6: poires | C6: 120 | D6: 10 | E6: 20 | F6: 30 | G6: 40 | H6: 50 | I6: 60 | J6: 70 | K6: 80 | L6: 90 | M6: 100 | N6: 110 | O6: 120
A7: 2019-06-01 | B7: Carottes | C7: 300 | D7: 25 | E7: 50 | F7: 75 | G7: 100 | H7: 125 | I7: 150 | J7: 175 | K7: 200 | L7: 225 | M7: 250 | N7: 275 | O7: 300
A8: 2019-07-01 | B8: Oranges | C8: 70 | D8: 5.833333333 | E8: 11.66666667 | F8: 17.5 | G8: 23.33333333 | H8: 29.16666667 | I8: 35 | J8: 40.83333333 | K8: 46.66666667 | L8: 52.5 | M8: 58.33333333 | N8: 64.16666667 | O8: 70
A9: 2019-08-01 | D9: 0 | E9: 0 | F9: 0 | G9: 0 | H9: 0 | I9: 0 | J9: 0 | K9: 0 | L9: 0 | M9: 0 | N9: 0 | O9: 0
A10: 2019-09-01 | D10: 0 | E10: 0 | F10: 0 | G10: 0 | H10: 0 | I10: 0 | J10: 0 | K10: 0 | L10: 0 | M10: 0 | N10: 0 | O10: 0
A11: 2019-10-01 | D11: 0 | E11: 0 | F11: 0 | G11: 0 | H11: 0 | I11: 0 | J11: 0 | K11: 0 | L11: 0 | M11: 0 | N11: 0 | O11: 0
A12: 2019-11-01 | D12: 0 | E12: 0 | F12: 0 | G12: 0 | H12: 0 | I12: 0 | J12: 0 | K12: 0 | L12: 0 | M12: 0 | N12: 0 | O12: 0
A13: 2019-12-01 | D13: 0 | E13: 0 | F13: 0 | G13: 0 | H13: 0 | I13: 0 | J13: 0 | K13: 0 | L13: 0 | M13: 0 | N13: 0 | O13: 0
A14: 2020-01-01 | D14: 0 | E14: 0 | F14: 0 | G14: 0 | H14: 0 | I14: 0 | J14: 0 | K14: 0 | L14: 0 | M14: 0 | N14: 0 | O14: 0
A15: 2020-02-01 | D15: 0 | E15: 0 | F15: 0 | G15: 0 | H15: 0 | I15: 0 | J15: 0 | K15: 0 | L15: 0 | M15: 0 | N15: 0 | O15: 0
A16: 2020-03-01 | D16: 0 | E16: 0 | F16: 0 | G16: 0 | H16: 0 | I16: 0 | J16: 0 | K16: 0 | L16: 0 | M16: 0 | N16: 0 | O16: 0
A17: 2020-04-01 | D17: 0 | E17: 0 | F17: 0 | G17: 0 | H17: 0 | I17: 0 | J17: 0 | K17: 0 | L17: 0 | M17: 0 | N17: 0 | O17: 0
A18: 2020-05-01 | D18: 0 | E18: 0 | F18: 0 | G18: 0 | H18: 0 | I18: 0 | J18: 0 | K18: 0 | L18: 0 | M18: 0 | N18: 0 | O18: 0
A19: 2020-06-01 | D19: 0 | E19: 0 | F19: 0 | G19: 0 | H19: 0 | I19: 0 | J19: 0 | K19: 0 | L19: 0 | M19: 0 | N19: 0 | O19: 0
A20: 2020-07-01 | D20: 0 | E20: 0 | F20: 0 | G20: 0 | H20: 0 | I20: 0 | J20: 0 | K20: 0 | L20: 0 | M20: 0 | N20: 0 | O20: 0
A21: 2020-08-01 | D21: 0 | E21: 0 | F21: 0 | G21: 0 | H21: 0 | I21: 0 | J21: 0 | K21: 0 | L21: 0 | M21: 0 | N21: 0 | O21: 0
A22: 2020-09-01
A23: 2020-10-01
A24: 2020-11-01
A25: 2020-12-01

Sheet Tab
A1: A fin | B1: vente 2019 | D1: 2019-12-01
A2: 2019-03-01 | D2: =(YEAR(D1)-YEAR(A2))*12+MONTH(D1)-MONTH(A2) -> 9 | F2: Le code est dans le module de cette feuille
B3: Objectif 2019 | C3: ="Réalisé à fin "&TEXT((A2),"mmmm aaaa") -> Réalisé à fin mars 2019 | D3: ="Reste à faire par mois jusqu’à fin "&TEXT((D1),"mmmm aaaa") -> Reste à faire par mois jusqu’à fin décembre 2019 | F3: Quannd la cellule est en blanc, elle n'est pas définie dans la feuille données
A4: Pomme granny | B4: 100 | C4: 25 | D4: =IF(B4=0,"",(B4-C4)/$D$2) -> 8.333333333
A5: Banane | B5: 150 | C5: 20 | D5: =IF(B5=0,"",(B5-C5)/$D$2) -> 14.44444444
A6: orange | B6: 200 | C6: 41 | D6: 17.66666667
A7: Abricot | B7: 530 | C7: 120 | D7: 45.55555556
A8: poires | B8: 120 | C8: 12 | D8: 12
A9: Carottes | B9: 300 | C9: 38 | D9: 29.11111111
A10: Poireaux | B10: 70 | C10: 10 | D10: 6.666666667
